Cogmind - Beta 13 @@@ ROGUE MODE // 2024.04.21 @ 15:14:46 Player: Exceptionally Mediocre Result: Destroyed by S-10 Pest with Light Assault Rifle Performance ------------- Evolutions (0) 0 Regions Visited (4) 800 Robots Destroyed (32) 160 Value Destroyed (413) 413 Prototype IDs (24) 480 Alien Tech Used (0) 0 Bonus (131) 131 TOTAL SCORE: 1984 Bonus ------- Follower Combat Kills 60 Aligned with FarCom 300 Friendly Fire -229 Cogmind --------- Core Integrity 0/250 Matter 242/300 Energy 160/160 System Corruption 2% Temperature Cool (0) Movement Treading (320) Ox2 Location -9/Mines Parts ------- > --- POWER (1) -------- Light Nuclear Core > --- PROPULSION (2) --- Light Treads Improved Treads > --- UTILITY (2) ------ Huge Storage Unit Sensor Drone Bay (16/20) > --- WEAPON (2) ------- Assault Rifle Assault Rifle > --- INVENTORY (25) --- Light Ion Engine Light Ion Engine Light Ion Engine Makeshift Power Source Light Treads Light Treads Improved Heat Sink High-capacity Battery (250) Small Matter Pod (50) Signal Interpreter Targeting Computer Core Shielding Hacking Suite Particle Gun Particle Gun Beamcaster Light Assault Rifle Light Assault Rifle Autogun Field Lobotomy Kit (5) Mining Laser Katana Peak State ------------ > --- POWER ------------ Light Nuclear Core > --- PROPULSION ------- Light Treads Improved Treads > --- UTILITY ---------- Huge Storage Unit Sensor Drone Bay > --- WEAPON ----------- Assault Rifle Assault Rifle > --- INVENTORY -------- Makeshift Power Source Light Treads Light Treads Improved Heat Sink High-capacity Battery Small Matter Pod Signal Interpreter Targeting Computer Core Shielding Hacking Suite Particle Gun Particle Gun Beamcaster Light Assault Rifle Autogun Field Lobotomy Kit Mining Laser Katana [Rating: 21] Favorites ----------- Power Ion Engine Engine Ion Engine Power Core Light Nuclear Core Propulsion Light Treads Treads Light Treads Utility Huge Storage Unit Device Sensor Drone Bay Storage Huge Storage Unit Weapon Assault Rifle Energy Gun Small Laser Ballistic Gun Assault Rifle Launcher Grenade Launcher Special Weapon Mining Laser Build | -11 -10 -10 -10 -9 ------- Run | Yrd Mat Min Exi Min Slots Evolved . | . . . . . Power . | . . . . . Propulsion . | . . . . . Utility . | . . . . . Weapon . | . . . . . Parts Attached 38 | 9 12 1 1 15 Power 6 | 1 2 . . 3 Engine 5 | 1 2 . . 2 Core 1 | . . . . 1 Reactor . | . . . . . Propulsion 9 | 2 1 . . 6 Treads 9 | 2 1 . . 6 Leg . | . . . . . Wheel . | . . . . . Hover . | . . . . . Flight . | . . . . . Utility 6 | 2 1 1 1 1 Device 2 | 1 . . . 1 Storage 4 | 1 1 1 1 . Processor . | . . . . . Hackware . | . . . . . Protection . | . . . . . Artifact . | . . . . . Weapon 17 | 4 8 . . 5 Energy Gun 8 | 3 3 . . 2 Energy Cannon . | . . . . . Ballistic Gun 6 | . 3 . . 3 Ballistic Cannon . | . . . . . Launcher 1 | . 1 . . . Special Weapon 2 | 1 1 . . . Impact Weapon . | . . . . . Slashing Weapon . | . . . . . Piercing Weapon . | . . . . . Special Melee Weapon . | . . . . . Unidentified Prototypes 1 | . . . . 1 Parts Lost 16 | . 5 . . 11 Power 4 | . 1 . . 3 Propulsion 4 | . . . . 4 Utility 1 | . 1 . . . Weapon 7 | . 3 . . 4 Highest Loss Streak 10 | . 2 . . 10 To Critical Strikes . | . . . . . Average Slot Usage (%) 89 | . 86 85 86 98 Engine 11 | . 14 14 14 5 Core 2 | . . . . 7 Treads 28 | . 28 28 28 28 Device 3 | . 1 . . 11 Storage 15 | . 14 14 15 16 Energy Gun 1 | . 6 . . . Ballistic Gun 16 | . 15 14 14 22 Launcher 8 | . 1 14 14 5 Special Weapon 1 | . 4 . . . Naked Turns . | . . . . . Heaviest Build 104 | 14 30 90 94 104 Greatest Support 43 | 40 40 40 40 43 Greatest Overweight (x) 3 | 3 . 2 2 2 Average Overweight (x) . | . . . 2 2 Largest Inventory Capacity 25 | 8 15 25 25 25 Average Capacity 19 | 7 13 18 25 25 Most Carried 22 | 5 15 17 18 22 Average Carried 14 | 3 10 15 17 18 Final Capacity 25 | 8 15 25 25 25 Final Carried 22 | 5 15 17 18 22 Class Distribution -------------------- 100% | Mutant Dominant Class ---------------- Mutant | -10/Materials Mutant | -10/Mines Mutant | -10/Exiles Mutant | -9/Mines Resources | -11 -10 -10 -10 -9 ----------- Run | Yrd Mat Min Exi Min Matter Collected 889 | 290 213 10 . 376 Remotely . | . . . . . Salvage Created 859 | 132 480 . . 247 Parts 57 | 13 36 . . 8 Haulers Intercepted 2 | . 2 . . . Recyclers Shooed 2 | . . . . 2 Parts Field Recycled . | . . . . . Retrieved Matter . | . . . . . Parts Self-Destructed . | . . . . . Prevented . | . . . . . Kills | -11 -10 -10 -10 -9 ------- Run | Yrd Mat Min Exi Min Combat Hostiles Destroyed 28 | . 12 . . 16 Guns 20 | . 7 . . 13 Cannons 1 | . 1 . . . AOE 7 | . 4 . . 3 Classes Destroyed 10 | 2 6 . . 2 Worker 3 | 1 1 . . 1 Tunneler 6 | 6 . . . . Hauler 2 | . 2 . . . Recycler 1 | . 1 . . . Operator 1 | . 1 . . . Watcher 2 | . 2 . . . Swarmer 11 | . 8 . . 3 Grunt 5 | . 4 . . 1 Zionite 1 | . . . . 1 Assembled 12 | . . . . 12 Best Kill Streak 7 | 4 5 . . 7 Combat Bots Only 7 | . 4 . . 7 Max Kills in Single Turn 4 | 1 4 . . 2 Gunslinging 1 | . . . . 1 Exploded 2 | . 2 . . 2 Melee . | . . . . . Uniques/NPCs Destroyed . | . . . . . Combat | -11 -10 -10 -10 -9 -------- Run | Yrd Mat Min Exi Min Hostile Shots Fired 216 | . 76 . . 140 Missed 51 | . 18 . . 33 Damage Taken 2043 | . 610 . . 1433 Core 257 | . 50 . . 207 Absorbed by Shields . | . . . . . Core Remaining (%) 100 | 100 . . . . Volleys Fired 108 | 22 38 1 . 47 Largest 2 | 2 2 1 . 2 Hottest 140 | 140 140 20 . 60 Shots Fired 178 | 30 65 1 . 82 Gun 155 | 22 56 1 . 76 Cannon . | . . . . . Launcher 7 | . 1 . . 6 Special 16 | 8 8 . . . Kinetic 106 | . 33 1 . 72 Thermal 55 | 30 25 . . . Explosive 7 | . 1 . . 6 Electromagnetic 10 | . 6 . . 4 Robot Hit Streak 8 | 5 8 . . 5 Robot Miss Streak 7 | 3 4 1 . 7 Penetration Max . | . . . . . Secondary Targets 5 | . 1 . . 4 Max Gunslinging Chain 1 | . 1 . . 1 Shots Hit Robots 93 | 15 36 . . 42 Core Hits 70 | 7 26 . . 37 Critical Kills . | . . . . . Critical Parts Destroyed 1 | . . . . 1 Critical Strikes 2 | . . . . 2 Destroy 1 | . . . . 1 Corrupt 1 | . . . . 1 Melee Attacks . | . . . . . Impact . | . . . . . Slashing . | . . . . . Piercing . | . . . . . Sneak Attacks . | . . . . . Combat Hostiles . | . . . . . Follow-up Attacks . | . . . . . Damage Inflicted 2028 | 214 700 . . 1114 Guns 1193 | 166 397 . . 630 Cannons . | . . . . . Explosions 738 | . 254 . . 484 Melee . | . . . . . Ramming 1 | . 1 . . . Kinetic 823 | . 227 . . 596 Thermal 489 | 214 275 . . . Explosive 644 | . 160 . . 484 Electromagnetic 71 | . 37 . . 34 Impact . | . . . . . Slashing . | . . . . . Piercing . | . . . . . Highest Corruption 2 | . . . . 2 Average Corruption 2 | . . . . 2 Corruption Purged . | . . . . . Corruption Blocked . | . . . . . Effects 5 | . . . . 5 Message Errors 1 | . . . . 1 Heat Flow Errors 2 | . . . . 2 Parts Rejected 1 | . . . . 1 Data Loss (minor) 1 | . . . . 1 Overload Shots . | . . . . . Overflow Damage 30 | . 30 . . . Projectiles . | . . . . . Explosions 30 | . 30 . . . Melee . | . . . . . Knockbacks . | . . . . . Impact . | . . . . . Kinetic . | . . . . . Secondary . | . . . . . Self-Inflicted Damage 93 | . 39 . . 54 Shots 3 | . 1 . . 2 Rammed 1 | . 1 . . . Targets Rammed 1 | . 1 . . . Kicked . | . . . . . Crushed . | . . . . . Highest Temperature 232 | 62 232 . . 198 Average Temperature 64 | 26 77 . . 82 Received Heat Transfer 755 | . 228 . . 527 Effects 1 | . 1 . . . Interference 1 | . 1 . . . Siege Activations . | . . . . . Robots Corrupted . | . . . . . Combat Hostiles . | . . . . . Parts Fried . | . . . . . Impact Corruptions . | . . . . . Robots Melted . | . . . . . Combat Hostiles . | . . . . . Parts Melted . | . . . . . Heat Transferred 925 | 475 450 . . . Parts Sabotaged . | . . . . . Parts Stolen . | . . . . . Parts Stripped . | . . . . . Power Chain Reactions 1 | . 1 . . . Alert | -11 -10 -10 -10 -9 ------- Run | Yrd Mat Min Exi Min Peak Influence 226 | 35 226 69 . 100 Initial 69 | . 22 69 . . Average 64 | 12 115 69 . 35 Maximum Alert Level 1 | . 1 . . . Low Security (%) 99 | 100 98 100 . 100 Level 1 . | . 1 . . . Level 2 . | . . . . . Level 3 . | . . . . . Level 4 . | . . . . . Level 5 . | . . . . . High Security . | . . . . . Max Security . | . . . . . Squads Dispatched 3 | . 3 . . . Investigation 1 | . 1 . . . Extermination . | . . . . . Reinforcement 2 | . 2 . . . Assault . | . . . . . Garrison . | . . . . . Intercept . | . . . . . Searches Triggered . | . . . . . Construction Impeded . | . . . . . Haulers Reinforced . | . . . . . Active Scanning Responses . | . . . . . Cargo Convoy Interrupts . | . . . . . Stealth | -11 -10 -10 -10 -9 --------- Run | Yrd Mat Min Exi Min Distress Signals . | . . . . . Communications Jammed . | . . . . . Distress Signals . | . . . . . Times Spotted 47 | . 20 . . 27 Peak Tracking Total 8 | . 4 . . 8 Tactical Retreats 3 | . 1 . . 2 Traps | -11 -10 -10 -10 -9 ------- Run | Yrd Mat Min Exi Min Traps Triggered . | . . . . . Indirectly . | . . . . . Trap Hack Attempts . | . . . . . Triggered . | . . . . . Disarmed . | . . . . . Reprogrammed . | . . . . . Reused . | . . . . . Traps Extracted . | . . . . . Installed . | . . . . . Triggered . | . . . . . Machines | -11 -10 -10 -10 -9 ---------- Run | Yrd Mat Min Exi Min Machines Disabled 3 | . 1 . . 2 Max in Single Turn 2 | . 1 . . 2 Machines Repaired . | . . . . . Machines Dismantled . | . . . . . Machines Sabotaged . | . . . . . Overloaded Fab Kills . | . . . . . Hacking | -11 -10 -10 -10 -9 --------- Run | Yrd Mat Min Exi Min Machines Accessed 3 | . 1 . 1 1 Terminals . | . . . . . Fabricators . | . . . . . Repair Stations . | . . . . . Recycling Units 1 | . 1 . . . Scanalyzers . | . . . . . Garrison Access . | . . . . . Total Hacks 7 | . 5 . 1 1 Successful 3 | . 1 . 1 1 Failed 4 | . 4 . . . Catastrophic 1 | . 1 . . . Database Lockouts . | . . . . . Manual 1 | . . . 1 . Terminals . | . . . . . Fabricators . | . . . . . Repair Stations . | . . . . . Recycling Units 5 | . 5 . . . Scanalyzers . | . . . . . Garrison Access . | . . . . . Terminal Hacks 2 | . . . 1 1 Open Door 1 | . . . . 1 Derelict Proto ID Bank 1 | . . . 1 . Fabricator Hacks . | . . . . . Repair Station Hacks . | . . . . . Recycling Unit Hacks 1 | . 1 . . . Retrieve Components 1 | . 1 . . . Scanalyzer . | . . . . . Garrison Access Hacks . | . . . . . Unauthorized Hacks . | . . . . . Terminals . | . . . . . Fabricators . | . . . . . Repair Stations . | . . . . . Recycling Units . | . . . . . Scanalyzers . | . . . . . Garrison Access . | . . . . . Data Cores Recovered . | . . . . . Used . | . . . . . Hacking Detections 1 | . 1 . . . Full Trace Events 1 | . 1 . . . Feedback Events . | . . . . . Feedback Blocked . | . . . . . Robot Schematics Acquired . | . . . . . Robots Built . | . . . . . Authchips . | . . . . . Time . | . . . . . Total Robot Build Rating . | . . . . . Part Schematics Acquired . | . . . . . Parts Built . | . . . . . Authchips . | . . . . . Time . | . . . . . Total Part Build Rating . | . . . . . Parts Repaired . | . . . . . Time . | . . . . . Parts Recycled . | . . . . . Recycled Matter . | . . . . . Retrieved Matter . | . . . . . Retrieved Components . | . . . . . Parts Scanalyzed . | . . . . . Part Schematics Acquired . | . . . . . Parts Damaged . | . . . . . Bothacking | -11 -10 -10 -10 -9 ------------ Run | Yrd Mat Min Exi Min Used RIF Installer . | . . . . . Robots Hacked . | . . . . . Non-combat . | . . . . . Combat . | . . . . . Robot Hacks Applied . | . . . . . Relay Couplers Released . | . . . . . Fabnet Peak Effective % . | . . . . . Robots Rewired . | . . . . . Allies Hacked . | . . . . . Hacks Repelled . | . . . . . Allies | -11 -10 -10 -10 -9 -------- Run | Yrd Mat Min Exi Min Total Allies 4 | . . 3 . 1 Largest Group 3 | . . 3 3 3 Highest-Rated Group 63 | . . 40 40 63 Highest-Rated Ally 31 | . . 16 16 31 Total Orders 6 | . . . . 6 ROAM 3 | . . . . 3 EXPLORE 3 | . . . . 3 Ally Attacks 38 | . . . . 38 Total Damage 374 | . . . . 374 Kills 8 | . . . . 8 Allies Corrupted 1 | . . . . 1 Allies Melted . | . . . . . Intel | -11 -10 -10 -10 -9 ------- Run | Yrd Mat Min Exi Min Robot Analysis Total . | . . . . . Derelict Logs Recovered . | . . . . . Drone Launches 6 | . . . . 6 Drone Recoveries 2 | . . . . 2 Exploration | -11 -10 -10 -10 -9 ------------- Run | Yrd Mat Min Exi Min Turns Passed 2748 | 263 654 340 765 726 Spaces Moved 1011 | 113 307 175 239 177 Core 6 | 6 . . . . Treads 1005 | 107 307 175 239 177 Legs . | . . . . . Wheels . | . . . . . Hover . | . . . . . Flight . | . . . . . Fastest Speed 50 | 50 160 160 320 320 Average Speed 231 | 157 160 192 320 320 Slowest Speed 320 | 200 160 320 320 320 Overloaded Moves . | . . . . . Propulsion Burnouts . | . . . . . Robots Hopped . | . . . . . Cave-ins Triggered . | . . . . . Exploration Rate (%) 50 | 5 51 39 60 96 Regions Visited 4 Branch Regions 3 Pre-discovered Areas 1 | . . . . 1 Known Exits Taken . | . . . . . Unknown Exits Taken 4 | 1 1 1 1 . Scrap Searched 2 | . . 1 . 1 Spaces Dug . | . . . . . Terrain Destroyed 60 | 2 11 . . 47 Melee . | . . . . . Projectile 4 | 2 2 . . . AOE 56 | . 9 . . 47 Terrain Rammed . | . . . . . Walls Destroyed . | . . . . . Machines Disabled . | . . . . . Actions | -11 -10 -10 -10 -9 --------- Run | Yrd Mat Min Exi Min Total 1211 | 148 390 180 240 253 Wait 6 | . 6 . . . Move 1007 | 112 306 174 238 177 Hop . | . . . . . Pick Up 41 | 5 19 2 1 14 Fast Attach 12 | 7 1 1 1 2 Attach 14 | . 4 . . 10 Detach 2 | . 1 1 . . Swap 12 | 2 7 . . 3 Drop 8 | . 7 1 . . Fire 108 | 22 38 1 . 47 Melee . | . . . . . Ram . | . . . . . Kick . | . . . . . Crush 1 | . 1 . . . Escape Stasis . | . . . . . Rewire . | . . . . . Trap . | . . . . . Miscellaneous . | . . . . . Route ------- -11/Scrapyard -10/Materials (discovered 3 exits: [*Mat] / [*Min x2]) -10/Mines -10/Exiles -9/Mines (discovered 2 exits: *Mat x2) History --------- Turn | Location | Event 12 | -11/Scrapyard | Discovered new exit (range 16) 264 | -11/Scrapyard | Entered Materials 268 | -10/Materials | Discovered new exit (range 11) 303 | -10/Materials | Build established: Mutant 687 | -10/Materials | Discovered new exit (range 5) 832 | -10/Materials | Discovered new exit (range 15) 918 | -10/Materials | Entered Mines 925 | -10/Mines | Assisted by bots powering up and referring to "LRC-V3" 1232 | -10/Mines | Deemed a non-threat by the Exiles lab entrance 1232 | -10/Mines | Discovered new exit (range 5) 1258 | -10/Mines | Entered Exiles 1258 | -10/Exiles | Accompanied by 3 allies 1335 | -10/Exiles | Met 8R-AWN 1390 | -10/Exiles | Met EX-HEX 1492 | -10/Exiles | Met EX-BIN 1537 | -10/Exiles | Aligned with FarCom system 1540 | -10/Exiles | Given EX-Vault access code 1614 | -10/Exiles | Opened EX-Vault 1652 | -10/Exiles | Found Field Lobotomy Kit 1727 | -10/Exiles | Warned to stay clear of 0b10 Research branches 1744 | -10/Exiles | Exiles lab attacked by MAIN.C 1997 | -10/Exiles | Discovered new exit (range 10) 2023 | -10/Exiles | Left Exiles lab with Field Lobotomy Kit 2023 | -10/Exiles | Entered Mines 2023 | -9/Mines | Accompanied by 3 allies 2030 | -9/Mines | Escorted by a lone wolf Derelict 2050 | -9/Mines | Learned location of Storage (-9) 2123 | -9/Mines | Found the Drone Emporium 2144 | -9/Mines | Found Prototype Device 2165 | -9/Mines | Identified Sensor Drone Bay 2250 | -9/Mines | Assembled infested the area 2287 | -9/Mines | Discovered new exit (range 50) 2305 | -9/Mines | Core integrity fell below 50% 2325 | -9/Mines | Core integrity fell below 20% 2326 | -9/Mines | Lost 5 allies 2357 | -9/Mines | Lost 10 parts (3p3n4w) 2364 | -9/Mines | Destroyed 7 combat bots 2624 | -9/Mines | Discovered new exit (range 41) 2627 | -9/Mines | Identified exit to Materials 2749 | -9/Mines | Destroyed by S-10 Pest with Light Assault Rifle Last Messages --------------- 02653_ as-78291 sneak attacks. 02658_ U-05 Engineer builds a Wall. 02658_ Sensor Drone destroyed. 02665_ T-07 Excavator is excavating. 02671_ T-07 Excavator destroyed. 02683_ K-01 Serf collects debris. 02687_ U-05 Engineer builds a Wall. 02687_ K-01 Serf collects debris. 02697_ System corrupted: Imp. Treads rejected. 02699_ Acquired Imp. Treads. 02712_ WBSWV28TENIX&:X3B9CO8H%679VF4R9TBD 02720_ Sensor Drone retrieved by Sensor Drone Bay. 02732_ S-10 Pest destroyed. 02732_ Switching to secondary target: S-10 Pest. 02738_ Laser Drill disabled. 02741_ S-10 Pest destroyed. 02741_ Switching to secondary target: S-10 Pest. 02741_ S-10 Pest destroyed. 02744_ Destroyed Flight Unit. Map ----- +----------------------------------------------------+ | ??????# #??????######### #?????##### #?# ## # | | ?????## ##????## ##??### ### ### ## # | | ????## ##??## #### #?# ## ## # | | ???## ##?# #?## # | | ??## #?# #### | | ?## #?## #### ## | | ?# ##??## #?### | | ?# ##????## #???## # | | ?# #??????## ##????# """ ## | | ?## #???????## ###?????# """ ##? | | ??# #????????######???????# """ #?? | | ??# ##????????????????????# ##?? | | ??## ##??????????????????? ####??? | | ???# #?????????????????? ##?????? | | ???# #?????????????????# ####??????? | | ???# ##?????????????????## ####?????????? | | ???# ####???????????????????## ###????????????? | | ???# #???????????????????????## #???????????????? | | ???# ######???#######################????????????? | | ???# #???# #????????????? | | ???# #### #???# %* #????????????? | | ???# #??# #???# = #????????????? | | ???# #??#*#???# """ """ """ "" """ #????######### | | ???# ####%##??# """!!""*""" """ """ #????# % | | ???# ==##?# """%"""="" """ """ ###### | | ???###### ### %*=! ==%@s ##### | | ????????# # """ """%""" """ """ #???# | | ????????## """ """ """ """ """ #########??# | | ?????????## %<= """ """ """ """ """ #??????????# | | ??????????## %# #??????????## | | ???????????#### #???????????## | | ??????????????#######################????????????? | | ?????????????????????????????????????????????????? | | | | | | | | | | | | | | | | | | | | | | | | | | | | | | | | | | | +----------------------------------------------------+ Best States ------------- Heat Dissipation 25 Energy Generation 14 Energy Capacity 500 Matter Stores 300 Matter Capacity 300 Sight Range 16 Terrain Scan Range 16 Terrain Scan Density 10 Evasion (%) 40 Recoil Reduction 2 Item Schematics ----------------- None Robot Schematics ------------------ None Fabricated ------------ Nothing Alien Tech Used ----------------- None Achievements -------------- None Challenges ------------ None Game ------ Seed ImprovedHackingHumpback Manual? 0 Play Time 00:23:08 Cumulative 91.5 hours Start 2024.04.21 @ 14:49:26 End 2024.04.21 @ 15:14:46 Sessions 1 Manual Loads 0 Difficulty Rogue Special Mode None Game No. 108 Rogue 108 Adventurer 0 Explorer 0 Win Type - Total 0 Types 0/0/0/0/0/0/0/0/0 Lore% 26 Gallery% 50 Achievement% 39 Wizard Run 0 Options --------- Layout 1 ASCII 0 Keyboard 1 Movement Vi Keybinds 0 Fullscreen 1 Font 24/Smallcaps Map View 50x35 Zoom Use 0% Tactical HUD 1 Map Filters NONE Filters NONE Steam 1 RUN: 2d982b77-071d-440e-a756-21a47ca09977